[Event "Titled Tuesday Blitz September 27 Early 2022"]
[White "Ansh M Shah"]
[Black "Adewumi, Tanitoluwa"]
[WhiteFideId "25033379"]
[BlackFideId "30966396"]
[WhiteElo "1819"]
[BlackElo "2560"]
[Result "0-1"]
[Round "09"]
[TimeControl "180+1"]
[Date "2022.09.27"]
[WhiteClock "0:00:16"]
[BlackClock "0:00:03"]

1. d4 {[%clk 0:02:52]}  Nf6 {[%clk 0:01:18]} 2. c4 {[%clk 0:02:53]}  e5 {[%clk 0:01:17]} 3. dxe5 {[%clk 0:02:32]}  Ng4 {[%clk 0:01:18]} 4. Nf3 {[%clk 0:02:32]}  Nc6 {[%clk 0:01:14]} 5. e3 {[%clk 0:02:32]}  Ngxe5 {[%clk 0:01:13]} 6. Be2 {[%clk 0:02:32]}  Bc5 {[%clk 0:01:10]} 7. O-O {[%clk 0:02:29]}  O-O {[%clk 0:01:10]} 8. Nc3 {[%clk 0:02:29]}  d6 {[%clk 0:01:08]} 9. Na4 {[%clk 0:02:22]}  Bb6 {[%clk 0:01:07]} 10. Nxb6 {[%clk 0:02:21]}  axb6 {[%clk 0:01:08]} 11. b3 {[%clk 0:02:22]}  Be6 {[%clk 0:01:07]} 12. Bb2 {[%clk 0:02:22]}  Re8 {[%clk 0:01:07]} 13. a4 {[%clk 0:02:02]}  Qd7 {[%clk 0:01:00]} 14. Qc2 {[%clk 0:01:45]}  Bf5 {[%clk 0:00:55]} 15. Qc3 {[%clk 0:01:42]}  f6 {[%clk 0:00:54]} 16. Rad1 {[%clk 0:01:37]}  Be4 {[%clk 0:00:52]} 17. Nd4 {[%clk 0:01:24]}  Nxd4 {[%clk 0:00:48]} 18. Rxd4 {[%clk 0:01:25]}  Nc6 {[%clk 0:00:42]} 19. Rd2 {[%clk 0:01:09]}  Qf7 {[%clk 0:00:11]} 20. Rfd1 {[%clk 0:00:59]}  Rad8 {[%clk 0:00:10]} 21. Bf1 {[%clk 0:00:47]}  Qg6 {[%clk 0:00:09]} 22. g3 {[%clk 0:00:46]}  Ne5 {[%clk 0:00:06]} 23. Rd5 {[%clk 0:00:30]}  Nf3+ {[%clk 0:00:06]} 24. Kg2 {[%clk 0:00:27]}  Nh4+ {[%clk 0:00:03]} 25. Kg1 {[%clk 0:00:27]}  Nf3+ {[%clk 0:00:03]} 26. Kg2 {[%clk 0:00:27]}  Nd2+ {[%clk 0:00:02]} 27. Kg1 {[%clk 0:00:26]}  Nxf1 {[%clk 0:00:02]} 28. Rxf1 {[%clk 0:00:20]}  Qg4 {[%clk 0:00:02]} 29. Rd4 {[%clk 0:00:17]}  Qf3 {[%clk 0:00:02]} 30. Rxe4 {[%clk 0:00:18]}  Rxe4 {[%clk 0:00:03]} 31. b4 {[%clk 0:00:17]}  Rde8 {[%clk 0:00:03]} 32. a5 {[%clk 0:00:16]}  bxa5 {[%clk 0:00:03]} 33. bxa5 {[%clk 0:00:17]}  R8e5 {[%clk 0:00:03]} 34. Qb4 {[%clk 0:00:16]}  Rh5 {[%clk 0:00:03]} 35. h4 {[%clk 0:00:16]}  Rhxh4 {[%clk 0:00:03]} 36. gxh4 {[%clk 0:00:15]}  Rg4+ {[%clk 0:00:03]} 37. Kh2 {[%clk 0:00:16]}  Qg2# {[%clk 0:00:03]} 0-1


[Site "https://www.chess.com"]

[Event "Titled Tuesday Blitz September 27 Early 2022"]
[White "Antonova, Nadezhda"]
[Black "Begunov, Konstantin"]
[WhiteFideId "14700182"]
[BlackFideId "4118510"]
[WhiteElo "1805"]
[BlackElo "2165"]
[Result "1/2-1/2"]
[Round "09"]
[TimeControl "180+1"]
[Date "2022.09.27"]
[WhiteClock "0:00:04"]
[BlackClock "0:00:09"]

1. Nf3 {[%clk 0:02:59]}  d5 {[%clk 0:02:59]} 2. b3 {[%clk 0:02:59]}  c6 {[%clk 0:03:00]} 3. Bb2 {[%clk 0:03:00]}  Bg4 {[%clk 0:03:00]} 4. g3 {[%clk 0:03:00]}  Bxf3 {[%clk 0:02:59]} 5. exf3 {[%clk 0:03:00]}  Nf6 {[%clk 0:02:58]} 6. Bg2 {[%clk 0:03:01]}  Nbd7 {[%clk 0:02:58]} 7. f4 {[%clk 0:03:01]}  g6 {[%clk 0:02:58]} 8. O-O {[%clk 0:03:01]}  Bg7 {[%clk 0:02:58]} 9. d4 {[%clk 0:02:58]}  O-O {[%clk 0:02:58]} 10. Nd2 {[%clk 0:02:59]}  e6 {[%clk 0:02:52]} 11. Nf3 {[%clk 0:02:58]}  c5 {[%clk 0:02:53]} 12. Ne5 {[%clk 0:02:57]}  cxd4 {[%clk 0:02:50]} 13. Bxd4 {[%clk 0:02:57]}  Qc7 {[%clk 0:02:37]} 14. Rc1 {[%clk 0:02:54]}  Nxe5 {[%clk 0:02:07]} 15. Bxe5 {[%clk 0:02:44]}  Qa5 {[%clk 0:02:05]} 16. c4 {[%clk 0:02:32]}  Rfd8 {[%clk 0:01:45]} 17. cxd5 {[%clk 0:02:18]}  Nxd5 {[%clk 0:01:44]} 18. Bxd5 {[%clk 0:02:05]}  Rxd5 {[%clk 0:01:38]} 19. Qe1 {[%clk 0:02:03]}  Qxa2 {[%clk 0:01:17]} 20. Bxg7 {[%clk 0:02:02]}  Kxg7 {[%clk 0:01:17]} 21. Rc7 {[%clk 0:02:02]}  Qxb3 {[%clk 0:01:03]} 22. Qxe6 {[%clk 0:02:00]}  Rf8 {[%clk 0:00:49]} 23. Qe7 {[%clk 0:01:16]}  Rb5 {[%clk 0:00:36]} 24. f5 {[%clk 0:01:07]}  Qb2 {[%clk 0:00:20]} 25. fxg6 {[%clk 0:00:51]}  hxg6 {[%clk 0:00:21]} 26. h4 {[%clk 0:00:45]}  a5 {[%clk 0:00:20]} 27. h5 {[%clk 0:00:43]}  Rb6 {[%clk 0:00:16]} 28. hxg6 {[%clk 0:00:39]}  Rxg6 {[%clk 0:00:16]} 29. Rxb7 {[%clk 0:00:38]}  Qf6 {[%clk 0:00:14]} 30. Qxf6+ {[%clk 0:00:32]}  Rxf6 {[%clk 0:00:15]} 31. Ra7 {[%clk 0:00:32]}  Rf5 {[%clk 0:00:16]} 32. Ra1 {[%clk 0:00:32]}  Rb8 {[%clk 0:00:15]} 33. R7xa5 {[%clk 0:00:29]}  Rxa5 {[%clk 0:00:16]} 34. Rxa5 {[%clk 0:00:29]}  Rb2 {[%clk 0:00:17]} 35. Ra6 {[%clk 0:00:26]}  f6 {[%clk 0:00:16]} 36. Kg2 {[%clk 0:00:25]}  Kg6 {[%clk 0:00:17]} 37. Ra5 {[%clk 0:00:24]}  Rb3 {[%clk 0:00:17]} 38. g4 {[%clk 0:00:22]}  Rc3 {[%clk 0:00:17]} 39. f3 {[%clk 0:00:22]}  Rc1 {[%clk 0:00:16]} 40. Kg3 {[%clk 0:00:22]}  Rc4 {[%clk 0:00:16]} 41. Ra8 {[%clk 0:00:16]}  Rb4 {[%clk 0:00:16]} 42. f4 {[%clk 0:00:15]}  Rb1 {[%clk 0:00:15]} 43. Rg8+ {[%clk 0:00:13]}  Kf7 {[%clk 0:00:15]} 44. Ra8 {[%clk 0:00:11]}  Rg1+ {[%clk 0:00:14]} 45. Kf3 {[%clk 0:00:11]}  Rf1+ {[%clk 0:00:14]} 46. Ke4 {[%clk 0:00:10]}  Rb1 {[%clk 0:00:12]} 47. f5 {[%clk 0:00:07]}  Rb4+ {[%clk 0:00:11]} 48. Kf3 {[%clk 0:00:07]}  Rb3+ {[%clk 0:00:11]} 49. Kg2 {[%clk 0:00:07]}  Rc3 {[%clk 0:00:11]} 50. Ra7+ {[%clk 0:00:07]}  Kf8 {[%clk 0:00:11]} 51. Rb7 {[%clk 0:00:05]}  Kg8 {[%clk 0:00:11]} 52. Rd7 {[%clk 0:00:05]}  Rb3 {[%clk 0:00:11]} 53. Re7 {[%clk 0:00:06]}  Kf8 {[%clk 0:00:10]} 54. Re6 {[%clk 0:00:06]}  Kf7 {[%clk 0:00:11]} 55. Re2 {[%clk 0:00:04]}  Rc3 {[%clk 0:00:11]} 56. Rf2 {[%clk 0:00:05]}  Kg7 {[%clk 0:00:11]} 57. Rf3 {[%clk 0:00:05]}  Rc1 {[%clk 0:00:11]} 58. Kg3 {[%clk 0:00:05]}  Rc4 {[%clk 0:00:11]} 59. Rf4 {[%clk 0:00:05]}  Rc3+ {[%clk 0:00:11]} 60. Kh4 {[%clk 0:00:05]}  Rc1 {[%clk 0:00:11]} 61. Ra4 {[%clk 0:00:04]}  Rh1+ {[%clk 0:00:11]} 62. Kg3 {[%clk 0:00:04]}  Rg1+ {[%clk 0:00:12]} 63. Kf3 {[%clk 0:00:04]}  Rf1+ {[%clk 0:00:12]} 64. Ke4 {[%clk 0:00:05]}  Re1+ {[%clk 0:00:12]} 65. Kd5 {[%clk 0:00:04]}  Re5+ {[%clk 0:00:12]} 66. Kd6 {[%clk 0:00:05]}  Re1 {[%clk 0:00:12]} 67. Ra7+ {[%clk 0:00:04]}  Kh6 {[%clk 0:00:12]} 68. Rf7 {[%clk 0:00:02]}  Kg5 {[%clk 0:00:12]} 69. Rg7+ {[%clk 0:00:03]}  Kf4 {[%clk 0:00:13]} 70. Rg6 {[%clk 0:00:03]}  Re2 {[%clk 0:00:10]} 71. Rxf6 {[%clk 0:00:03]}  Kxg4 {[%clk 0:00:10]} 72. Rf8 {[%clk 0:00:03]}  Kg5 {[%clk 0:00:11]} 73. f6 {[%clk 0:00:03]}  Kg6 {[%clk 0:00:11]} 74. f7 {[%clk 0:00:03]}  Kg7 {[%clk 0:00:10]} 75. Re8 {[%clk 0:00:03]}  Rf2 {[%clk 0:00:09]} 76. Ke7 {[%clk 0:00:03]}  Rxf7+ {[%clk 0:00:09]} 77. Ke6 {[%clk 0:00:04]}  Rf6+ {[%clk 0:00:09]} 78. Ke5 {[%clk 0:00:04]}  Rf7 {[%clk 0:00:09]} 79. Ke6 {[%clk 0:00:03]}  Rf6+ {[%clk 0:00:09]} 80. Ke5 {[%clk 0:00:04]}  Rf7 {[%clk 0:00:09]} 81. Ke6 {[%clk 0:00:04]} 1/2-1/2


[Site "https://www.chess.com"]

[Event "Titled Tuesday Blitz September 27 Early 2022"]
[White "Arabidze, Meri"]
[Black "Ibrahimli, Murad"]
[WhiteFideId "13604040"]
[BlackFideId "13410229"]
[WhiteElo "2335"]
[BlackElo "2109"]
[Result "1/2-1/2"]
[Round "09"]
[TimeControl "180+1"]
[Date "2022.09.27"]
[WhiteClock "0:00:14"]
[BlackClock "0:00:11"]

1. Nf3 {[%clk 0:03:00]}  Nf6 {[%clk 0:02:57]} 2. c4 {[%clk 0:03:00]}  e6 {[%clk 0:02:57]} 3. g3 {[%clk 0:03:01]}  d5 {[%clk 0:02:56]} 4. Bg2 {[%clk 0:03:01]}  Be7 {[%clk 0:02:56]} 5. O-O {[%clk 0:03:01]}  O-O {[%clk 0:02:57]} 6. d4 {[%clk 0:03:01]}  dxc4 {[%clk 0:02:57]} 7. Qc2 {[%clk 0:03:02]}  a6 {[%clk 0:02:58]} 8. a4 {[%clk 0:03:01]}  Bd7 {[%clk 0:02:56]} 9. Nc3 {[%clk 0:03:00]}  Bc6 {[%clk 0:02:56]} 10. Rd1 {[%clk 0:03:00]}  Bb4 {[%clk 0:02:49]} 11. Na2 {[%clk 0:02:47]}  a5 {[%clk 0:02:41]} 12. Nxb4 {[%clk 0:02:43]}  axb4 {[%clk 0:02:42]} 13. Qxc4 {[%clk 0:02:43]}  Bxa4 {[%clk 0:02:41]} 14. Bg5 {[%clk 0:02:11]}  Nbd7 {[%clk 0:01:44]} 15. b3 {[%clk 0:02:07]}  Bc6 {[%clk 0:01:45]} 16. Qxb4 {[%clk 0:02:04]}  h6 {[%clk 0:01:43]} 17. Bxf6 {[%clk 0:01:41]}  Nxf6 {[%clk 0:01:40]} 18. Rxa8 {[%clk 0:01:39]}  Qxa8 {[%clk 0:01:41]} 19. Ne5 {[%clk 0:01:35]}  Bxg2 {[%clk 0:01:40]} 20. Kxg2 {[%clk 0:01:36]}  b6+ {[%clk 0:01:41]} 21. Kg1 {[%clk 0:01:31]}  Qe4 {[%clk 0:01:40]} 22. Qd2 {[%clk 0:01:19]}  Rd8 {[%clk 0:01:40]} 23. e3 {[%clk 0:01:08]}  c5 {[%clk 0:01:37]} 24. Qd3 {[%clk 0:01:01]}  Qb7 {[%clk 0:01:22]} 25. Qb5 {[%clk 0:00:53]}  cxd4 {[%clk 0:01:01]} 26. Rxd4 {[%clk 0:00:54]}  Rxd4 {[%clk 0:01:00]} 27. exd4 {[%clk 0:00:55]}  Qa7 {[%clk 0:00:53]} 28. Qc4 {[%clk 0:00:48]}  g6 {[%clk 0:00:49]} 29. Qc8+ {[%clk 0:00:44]}  Kg7 {[%clk 0:00:49]} 30. Qd8 {[%clk 0:00:43]}  b5 {[%clk 0:00:42]} 31. h4 {[%clk 0:00:39]}  Qb7 {[%clk 0:00:37]} 32. Qd6 {[%clk 0:00:26]}  Ne4 {[%clk 0:00:24]} 33. Qd8 {[%clk 0:00:19]}  Nf6 {[%clk 0:00:16]} 34. Qd6 {[%clk 0:00:18]}  Qa7 {[%clk 0:00:16]} 35. Qc5 {[%clk 0:00:15]}  Qa1+ {[%clk 0:00:13]} 36. Kg2 {[%clk 0:00:15]}  Qa8+ {[%clk 0:00:13]} 37. Kg1 {[%clk 0:00:15]}  Qb7 {[%clk 0:00:11]} 38. Qd6 {[%clk 0:00:14]} 1/2-1/2


[Site "https://www.chess.com"]

[Event "Titled Tuesday Blitz September 27 Early 2022"]
[White "Avazkhonov, Alikhon"]
[Black "Vlassov, Nikolai"]
[WhiteFideId "14208504"]
[BlackFideId "4103360"]
[WhiteElo "1739"]
[BlackElo "2324"]
[Result "0-1"]
[Round "09"]
[TimeControl "180+1"]
[Date "2022.09.27"]
[WhiteClock "0:00:01"]
[BlackClock "0:00:03"]

1. d4 {[%clk 0:03:00]}  Nf6 {[%clk 0:02:59]} 2. c4 {[%clk 0:03:00]}  Nc6 {[%clk 0:02:59]} 3. Nc3 {[%clk 0:02:55]}  e5 {[%clk 0:02:59]} 4. Nf3 {[%clk 0:02:52]}  exd4 {[%clk 0:02:58]} 5. Nxd4 {[%clk 0:02:53]}  Bb4 {[%clk 0:02:58]} 6. g3 {[%clk 0:02:50]}  Bxc3+ {[%clk 0:02:57]} 7. bxc3 {[%clk 0:02:50]}  O-O {[%clk 0:02:58]} 8. Bg2 {[%clk 0:02:49]}  Ne5 {[%clk 0:02:47]} 9. c5 {[%clk 0:02:46]}  Qe7 {[%clk 0:02:44]} 10. Nb3 {[%clk 0:02:32]}  Rb8 {[%clk 0:02:24]} 11. O-O {[%clk 0:02:31]}  b6 {[%clk 0:02:21]} 12. cxb6 {[%clk 0:02:30]}  axb6 {[%clk 0:02:21]} 13. a4 {[%clk 0:02:17]}  Bb7 {[%clk 0:02:17]} 14. e4 {[%clk 0:01:42]}  Nxe4 {[%clk 0:01:37]} 15. Re1 {[%clk 0:01:35]}  f5 {[%clk 0:01:30]} 16. Ba3 {[%clk 0:01:25]}  d6 {[%clk 0:01:22]} 17. f3 {[%clk 0:01:19]}  Nxc3 {[%clk 0:01:18]} 18. Qd2 {[%clk 0:01:16]}  Nxa4 {[%clk 0:01:12]} 19. f4 {[%clk 0:01:15]}  Bxg2 {[%clk 0:01:08]} 20. Qxg2 {[%clk 0:01:14]}  Qf7 {[%clk 0:00:54]} 21. Nd4 {[%clk 0:00:28]}  Nc4 {[%clk 0:00:47]} 22. Bxd6 {[%clk 0:00:14]}  Nxd6 {[%clk 0:00:47]} 23. Rxa4 {[%clk 0:00:15]}  Rbe8 {[%clk 0:00:46]} 24. Rea1 {[%clk 0:00:14]}  Re4 {[%clk 0:00:44]} 25. Qc2 {[%clk 0:00:07]}  Rfe8 {[%clk 0:00:42]} 26. Nf3 {[%clk 0:00:06]}  Rxa4 {[%clk 0:00:38]} 27. Rxa4 {[%clk 0:00:07]}  Qd5 {[%clk 0:00:34]} 28. Ne5 {[%clk 0:00:06]}  c5 {[%clk 0:00:24]} 29. Qb2 {[%clk 0:00:06]}  b5 {[%clk 0:00:11]} 30. Ra7 {[%clk 0:00:05]}  Qd4+ {[%clk 0:00:10]} 31. Qxd4 {[%clk 0:00:05]}  cxd4 {[%clk 0:00:11]} 32. Rd7 {[%clk 0:00:05]}  Re6 {[%clk 0:00:09]} 33. Rd8+ {[%clk 0:00:06]}  Ne8 {[%clk 0:00:09]} 34. Rxd4 {[%clk 0:00:06]}  g5 {[%clk 0:00:09]} 35. Rd5 {[%clk 0:00:05]}  gxf4 {[%clk 0:00:09]} 36. gxf4 {[%clk 0:00:06]}  b4 {[%clk 0:00:09]} 37. Rb5 {[%clk 0:00:05]}  Nf6 {[%clk 0:00:09]} 38. Rxb4 {[%clk 0:00:05]}  Nd5 {[%clk 0:00:10]} 39. Rb8+ {[%clk 0:00:04]}  Kg7 {[%clk 0:00:10]} 40. Rb7+ {[%clk 0:00:05]}  Kh6 {[%clk 0:00:10]} 41. Nf7+ {[%clk 0:00:05]}  Kh5 {[%clk 0:00:10]} 42. Ng5 {[%clk 0:00:05]}  Re2 {[%clk 0:00:08]} 43. Rxh7+ {[%clk 0:00:03]}  Kg4 {[%clk 0:00:08]} 44. Nh3 {[%clk 0:00:03]}  Kf3 {[%clk 0:00:07]} 45. Ng5+ {[%clk 0:00:02]}  Kxf4 {[%clk 0:00:07]} 46. Nh3+ {[%clk 0:00:02]}  Kf3 {[%clk 0:00:07]} 47. Kf1 {[%clk 0:00:03]}  Ra2 {[%clk 0:00:04]} 48. Ng1+ {[%clk 0:00:02]}  Ke3 {[%clk 0:00:02]} 49. Rh3+ {[%clk 0:00:01]}  Ke4 {[%clk 0:00:02]} 50. Rf3 {[%clk 0:00:02]}  f4 {[%clk 0:00:02]} 51. Rf2 {[%clk 0:00:03]}  Ne3+ {[%clk 0:00:02]} 52. Ke1 {[%clk 0:00:03]}  Ra1+ {[%clk 0:00:03]} 53. Ke2 {[%clk 0:00:02]}  Rxg1 {[%clk 0:00:03]} 54. h4 {[%clk 0:00:03]}  Ra1 {[%clk 0:00:02]} 55. h5 {[%clk 0:00:02]}  Nf5 {[%clk 0:00:02]} 56. Rf1 {[%clk 0:00:01]}  Ra2+ {[%clk 0:00:02]} 57. Ke1 {[%clk 0:00:01]}  Ke3 {[%clk 0:00:03]} 58. Rf2 {[%clk 0:00:01]}  Ra1# {[%clk 0:00:03]} 0-1


[Site "https://www.chess.com"]

[Event "Titled Tuesday Blitz September 27 Early 2022"]
[White "Averjanov, Alexey"]
[Black "D`Arruda, Ricardo D."]
[WhiteFideId "14109867"]
[BlackFideId "100692"]
[WhiteElo "2639"]
[BlackElo "2460"]
[Result "1-0"]
[Round "09"]
[TimeControl "180+1"]
[Date "2022.09.27"]
[WhiteClock "0:00:29"]
[BlackClock "0:00:01"]

1. d4 {[%clk 0:03:00]}  Nf6 {[%clk 0:02:58]} 2. c4 {[%clk 0:03:00]}  e5 {[%clk 0:02:57]} 3. dxe5 {[%clk 0:03:00]}  Ne4 {[%clk 0:02:57]} 4. a3 {[%clk 0:02:59]}  Nc6 {[%clk 0:02:57]} 5. Nf3 {[%clk 0:02:58]}  d6 {[%clk 0:02:56]} 6. Nbd2 {[%clk 0:02:52]}  Nxd2 {[%clk 0:02:56]} 7. Qxd2 {[%clk 0:02:53]}  dxe5 {[%clk 0:02:55]} 8. Qxd8+ {[%clk 0:02:53]}  Kxd8 {[%clk 0:02:56]} 9. Bg5+ {[%clk 0:02:53]}  f6 {[%clk 0:02:56]} 10. O-O-O+ {[%clk 0:02:54]}  Ke8 {[%clk 0:02:56]} 11. Bd2 {[%clk 0:02:53]}  Be6 {[%clk 0:02:53]} 12. e3 {[%clk 0:02:52]}  Be7 {[%clk 0:02:51]} 13. Bc3 {[%clk 0:02:52]}  Kf7 {[%clk 0:02:51]} 14. Be2 {[%clk 0:02:53]}  a5 {[%clk 0:02:42]} 15. h3 {[%clk 0:02:49]}  a4 {[%clk 0:02:42]} 16. Rd2 {[%clk 0:02:45]}  Na5 {[%clk 0:02:40]} 17. Bxa5 {[%clk 0:02:37]}  Rxa5 {[%clk 0:02:41]} 18. Rhd1 {[%clk 0:02:34]}  Rc5 {[%clk 0:02:36]} 19. Rc2 {[%clk 0:02:33]}  Ra5 {[%clk 0:02:21]} 20. Rcd2 {[%clk 0:02:29]}  c6 {[%clk 0:02:06]} 21. Ne1 {[%clk 0:02:23]}  b5 {[%clk 0:02:00]} 22. cxb5 {[%clk 0:02:20]}  cxb5 {[%clk 0:02:01]} 23. Nc2 {[%clk 0:02:12]}  Rc8 {[%clk 0:01:56]} 24. Kb1 {[%clk 0:02:10]}  Bb3 {[%clk 0:01:54]} 25. Rc1 {[%clk 0:02:08]}  Ra7 {[%clk 0:01:36]} 26. Nb4 {[%clk 0:01:58]}  Bxb4 {[%clk 0:01:30]} 27. axb4 {[%clk 0:01:57]}  Ba2+ {[%clk 0:01:30]} 28. Kxa2 {[%clk 0:01:56]}  Rxc1 {[%clk 0:01:31]} 29. Bxb5 {[%clk 0:01:56]}  Rb7 {[%clk 0:01:18]} 30. Bxa4 {[%clk 0:01:45]}  Rxb4 {[%clk 0:01:18]} 31. Bc2 {[%clk 0:01:39]}  Rb7 {[%clk 0:01:15]} 32. b3 {[%clk 0:01:37]}  Rc7 {[%clk 0:01:04]} 33. Bd1 {[%clk 0:01:34]}  R1c6 {[%clk 0:00:52]} 34. Kb2 {[%clk 0:01:32]}  Ke7 {[%clk 0:00:52]} 35. Be2 {[%clk 0:01:28]}  Rd6 {[%clk 0:00:53]} 36. Rxd6 {[%clk 0:01:19]}  Kxd6 {[%clk 0:00:54]} 37. h4 {[%clk 0:01:20]}  Kc5 {[%clk 0:00:53]} 38. Kc3 {[%clk 0:01:16]}  Ra7 {[%clk 0:00:53]} 39. Bc4 {[%clk 0:01:12]}  Ra1 {[%clk 0:00:46]} 40. Bg8 {[%clk 0:01:07]}  h6 {[%clk 0:00:45]} 41. Kd3 {[%clk 0:01:04]}  Rh1 {[%clk 0:00:35]} 42. g3 {[%clk 0:01:02]}  Kb4 {[%clk 0:00:31]} 43. Ke4 {[%clk 0:01:00]}  Rf1 {[%clk 0:00:31]} 44. f4 {[%clk 0:00:55]}  exf4 {[%clk 0:00:28]} 45. exf4 {[%clk 0:00:55]}  Rg1 {[%clk 0:00:27]} 46. Kf3 {[%clk 0:00:54]}  Kc5 {[%clk 0:00:26]} 47. Kg4 {[%clk 0:00:53]}  Kd4 {[%clk 0:00:20]} 48. b4 {[%clk 0:00:50]}  Ke3 {[%clk 0:00:20]} 49. h5 {[%clk 0:00:46]}  Kf2 {[%clk 0:00:19]} 50. b5 {[%clk 0:00:46]}  Rxg3+ {[%clk 0:00:20]} 51. Kf5 {[%clk 0:00:46]}  Rd3 {[%clk 0:00:15]} 52. Kg6 {[%clk 0:00:43]}  Rd7 {[%clk 0:00:15]} 53. Be6 {[%clk 0:00:41]}  Rb7 {[%clk 0:00:14]} 54. f5 {[%clk 0:00:37]}  Kg3 {[%clk 0:00:13]} 55. Bc8 {[%clk 0:00:35]}  Rb8 {[%clk 0:00:10]} 56. Bd7 {[%clk 0:00:33]}  Kf4 {[%clk 0:00:10]} 57. Kxg7 {[%clk 0:00:31]}  Rb7 {[%clk 0:00:06]} 58. Kxh6 {[%clk 0:00:30]}  Rxd7 {[%clk 0:00:05]} 59. Kg6 {[%clk 0:00:30]}  Ke5 {[%clk 0:00:01]} 60. h6 {[%clk 0:00:29]} 1-0


[Site "https://www.chess.com"]

[Event "Titled Tuesday Blitz September 27 Early 2022"]
[White "Bacrot, Etienne"]
[Black "Weetik, Vjacheslav"]
[WhiteFideId "605506"]
[BlackFideId "4153472"]
[WhiteElo "2666"]
[BlackElo "2469"]
[Result "1-0"]
[Round "09"]
[TimeControl "180+1"]
[Date "2022.09.27"]
[WhiteClock "0:01:05"]
[BlackClock "0:00:52"]

1. Nf3 {[%clk 0:03:00]}  Nf6 {[%clk 0:02:59]} 2. g3 {[%clk 0:03:01]}  g6 {[%clk 0:02:56]} 3. Bg2 {[%clk 0:03:01]}  Bg7 {[%clk 0:02:56]} 4. d4 {[%clk 0:03:01]}  d5 {[%clk 0:02:56]} 5. c4 {[%clk 0:03:01]}  c6 {[%clk 0:02:55]} 6. O-O {[%clk 0:02:59]}  O-O {[%clk 0:02:55]} 7. Qb3 {[%clk 0:02:54]}  Qb6 {[%clk 0:02:53]} 8. Nc3 {[%clk 0:02:54]}  Rd8 {[%clk 0:02:53]} 9. Rd1 {[%clk 0:02:53]}  Bf5 {[%clk 0:02:44]} 10. Ne1 {[%clk 0:02:44]}  Na6 {[%clk 0:02:26]} 11. cxd5 {[%clk 0:02:17]}  cxd5 {[%clk 0:02:17]} 12. Nxd5 {[%clk 0:02:09]}  Nxd5 {[%clk 0:01:54]} 13. Bxd5 {[%clk 0:02:08]}  Nb4 {[%clk 0:01:38]} 14. Bxf7+ {[%clk 0:02:01]}  Kh8 {[%clk 0:01:30]} 15. Be3 {[%clk 0:01:44]}  e6 {[%clk 0:01:10]} 16. d5 {[%clk 0:01:42]}  Qb5 {[%clk 0:00:56]} 17. dxe6 {[%clk 0:01:31]}  Rxd1 {[%clk 0:00:52]} 18. Rxd1 {[%clk 0:01:30]}  Qxe2 {[%clk 0:00:53]} 19. e7 {[%clk 0:01:17]}  Nc2 {[%clk 0:00:52]} 20. Rd8+ {[%clk 0:01:05]} 1-0


[Site "https://www.chess.com"]

[Event "Titled Tuesday Blitz September 27 Early 2022"]
[White "Becerra, Juan David"]
[Black "Bettalli, Francesco"]
[WhiteFideId "4404998"]
[BlackFideId "2816453"]
[WhiteElo "2278"]
[BlackElo "2216"]
[Result "1-0"]
[Round "09"]
[TimeControl "180+1"]
[Date "2022.09.27"]
[WhiteClock "0:01:39"]
[BlackClock "0:02:01"]

1. e4 {[%clk 0:03:00]}  e5 {[%clk 0:03:00]} 2. Nf3 {[%clk 0:03:00]}  Nf6 {[%clk 0:03:00]} 3. Nxe5 {[%clk 0:03:00]}  Nc6 {[%clk 0:03:00]} 4. Nxc6 {[%clk 0:02:59]}  dxc6 {[%clk 0:03:00]} 5. e5 {[%clk 0:02:47]}  Ne4 {[%clk 0:02:57]} 6. Nc3 {[%clk 0:02:42]}  Nxc3 {[%clk 0:02:52]} 7. bxc3 {[%clk 0:02:43]}  Qh4 {[%clk 0:02:43]} 8. Be2 {[%clk 0:02:37]}  Bf5 {[%clk 0:02:40]} 9. O-O {[%clk 0:02:34]}  O-O-O {[%clk 0:02:36]} 10. d4 {[%clk 0:02:29]}  c5 {[%clk 0:02:33]} 11. Be3 {[%clk 0:02:29]}  cxd4 {[%clk 0:02:33]} 12. cxd4 {[%clk 0:02:30]}  f6 {[%clk 0:02:26]} 13. Qc1 {[%clk 0:02:29]}  Be7 {[%clk 0:02:23]} 14. Bf3 {[%clk 0:02:19]}  g5 {[%clk 0:02:15]} 15. g3 {[%clk 0:02:17]}  Qh6 {[%clk 0:02:12]} 16. Rb1 {[%clk 0:02:12]}  c6 {[%clk 0:02:07]} 17. Qb2 {[%clk 0:02:08]}  Rd7 {[%clk 0:02:06]} 18. Bxc6 {[%clk 0:02:07]}  Rc7 {[%clk 0:02:06]} 19. Bxb7+ {[%clk 0:02:07]}  Kd8 {[%clk 0:02:07]} 20. d5 {[%clk 0:01:55]}  Be4 {[%clk 0:02:06]} 21. Qd4 {[%clk 0:01:47]}  Bf3 {[%clk 0:02:02]} 22. d6 {[%clk 0:01:40]}  Rxb7 {[%clk 0:02:01]} 23. dxe7+ {[%clk 0:01:39]}  Kxe7 {[%clk 0:02:00]} 24. Qd6+ {[%clk 0:01:39]}  Kf7 {[%clk 0:02:00]} 25. Rxb7+ {[%clk 0:01:39]}  Bxb7 {[%clk 0:02:00]} 26. Qd7+ {[%clk 0:01:39]}  Kg6 {[%clk 0:02:01]} 27. Qxb7 {[%clk 0:01:39]} 1-0


[Site "https://www.chess.com"]